Workbook

Sheet 1. Forside
A1: Biofos Lynettefællesskabet A/S
D8: Bilag A
D13: Indholdsfortegnelse
C16: Fane nr. 2 | D16: Samlet prisloft
C17: Fane nr. 3 | D17: Driftsomkostninger
C18: Fane nr. 4 | D18: Historiske investeringer
C19: Fane nr. 5 | D19: Gennemførte investeringer
C20: Fane nr. 6 | D20: Korrektion investeringer
C21: Fane nr. 7 | D21: Planlagte investeringer
C22: Fane nr. 8 | D22: 1:1 omkostninger
C23: Fane nr. 9 | D23: Miljø- og servicemål
C24: Fane nr. 10 | D24: Klimatilpasning
C25: Fane nr. 11 | D25: Nettofinansielle poster
C26: Fane nr. 12 | D26: Over- eller underdækning
C27: Fane nr. 13 | D27: Kontrol med indtægtsrammen og oversigt over ekstraordinære effektiviseringsgevinster

Sheet 2. Samlet prisloft
A1: ='1. Forside'!A1 -> Biofos Lynettefællesskabet A/S
B4: Fane 2. Samlet prisloft for 2015
B6: Driftsomkostninger
B7: Driftsomkostninger i prisloftet for 2014 | C7: ='3. Driftsomkostninger'!C20 -> 158314494.2 | D7: kr.
B8: Bortfald af væsentlige omkostninger | C8: =-'3. Driftsomkostninger'!C16 -> 0 | D8: kr.
B9: Korrektion for prisudviklingen 2014-2015 | C9: ='3. Driftsomkostninger'!C22 -> 126651.5953 | D9: kr.
B10: Forhøjelse til effektivt niveau iht. benchmarkingen | C10: ='3. Driftsomkostninger'!C28 -> 0 | D10: kr.
B11: Korrektion for generelt effektiviseringskrav | C11: =-'3. Driftsomkostninger'!C34 -> -696583.7743 | D11: kr.
B12: Korrektion for individuelt effektiviseringskrav | C12: =-'3. Driftsomkostninger'!C43 -> -7915724.708 | D12: kr.
B13: Driftsomkostninger i alt | C13: =SUM(C7:C12) -> 149828837.3 | D13: kr. | E13: =C13 -> 149828837.3 | F13: kr.
B14: Investeringer
B15: Tillæg for historiske investeringer | C15: ='4. Historiske investeringer'!C9 -> 71037882.57 | D15: kr.
B16: Tillæg for gennemførte investeringer i 2011-2013 | C16: ='5. Gennemførte investeringer'!F145 -> 39890491.65 | D16: kr.
B17: Korrektion af tillæg for planlagte investeringer vedrørende 2013 | C17: ='6. Korrektion investeringer'!C10 -> 15731292.1 | D17: kr.
B18: Tillæg for planlagte investeringer i 2014 og 2015 | C18: ='7. Planlagte investeringer'!F14 -> 34132500 | D18: kr.
B19: Investeringstillæg i alt | C19: =SUM(C15:C18) -> 160792166.3 | D19: kr. | E19: =C19 -> 160792166.3 | F19: kr.
B20: Øvrige omkostninger mv.
B21: Tillæg for 1:1 omkostninger i 2015 | C21: ='8. 1-1 omkostninger'!C14 -> 40033000 | D21: kr.
B22: Tillæg vedr. revisorerklæringer og DANVA/FVD-kontingent | C22: ='8. 1-1 omkostninger'!C22 -> 208800 | D22: kr.
B23: Korrektion ift. faktiske 1:1 omkostninger i 2013 | C23: ='8. 1-1 omkostninger'!C28 -> -13692913 | D23: kr.
B24: Tillæg for driftsomkostninger til miljø- og servicemål i 2015 | C24: ='9. Miljø- og servicemål'!C10 -> 2400000 | D24: kr.
B25: Korrektion ift. faktiske driftsomkostninger til miljø- og servicemål i 2013 | C25: ='9. Miljø- og servicemål'!C17 -> 0 | D25: kr.
B26: Tillæg for driftsomkostninger til medfinansiering af klimatilpasningsprojekter i 2015 | C26: ='10. Klimatilpasning'!C9 -> 0 | D26: kr.
B27: Korrektion ift. faktiske omkostninger til medfinansiering af klimatilpasningsprojekter i 2013 | C27: ='10. Klimatilpasning'!C16 -> 0 | D27: kr.
B28: Tillæg/fradrag for nettofinansielle poster i 2015 | C28: ='11. Nettofinansielle poster'!C9 -> 6550000 | D28: kr.
B29: Korrektion ift. faktiske nettofinansielle poster i 2013 | C29: ='11. Nettofinansielle poster'!C16 -> 515793 | D29: kr.
B30: Øvrige omkostninger mv. i alt | C30: =SUM(C21:C29) -> 36014680 | D30: kr. | E30: =C30 -> 36014680 | F30: kr.
B31: Historisk over- eller underdækning
B32: Tillæg/fradrag for over- eller underdækning til og med 2010 | C32: ='12. Over- eller underdækning'!C11 -> 7228408.5 | D32: kr. | E32: =C32 -> 7228408.5 | F32: kr.
B33: Korrektion i forhold til tidligere indtægtsramme
B34: Korrektion for overholdelse af indtægtsramme i prisloft 2013 | C34: ='13. Kontrol med indtægtsrammen'!E27 -> 17704993.19 | D34: kr. | E34: =C34 -> 17704993.19 | F34: kr.
B35: Samlet prisloft
B36: Indtægtsramme i 2015 | E36: =SUM(E13:E34) -> 371569085.3 | F36: kr.
B37: Debiteret vandmængde i 2013 | E37: 44456000 | F37: m3
B38: Prisloft 2015 | E38: =E36/E37 -> 8.358131305 | F38: kr./m3

Sheet 3. Driftsomkostninger
A1: ='1. Forside'!A1 -> Biofos Lynettefællesskabet A/S
B4: Fane 3. Driftsomkostninger
B6: Driftsomkostningerne i prisloftet for 2014
B7: Korrigerede driftsomkostninger i prisloftet for 2013 (DOiPL 2013) | C7: 164056470.7 | D7: kr.
B8: Prisfremskrivning 1,5 pct. | C8: =0.015*SUM(C7:C7) -> 2460847.06 | D8: kr.
B9: Generelt effektiviseringskrav (0 pct.) | C9: 0 | D9: kr.
B10: Individuelt effektiviseringskrav | C10: -8202823.55 | D10: kr.
B11: Driftsomkostningerne i prisloftet for 2014 (DOiPL 2014) | C11: =SUM(C7:C10) -> 158314494.2 | D11: kr.
B14: Korrektion for forventet bortfald af væsentlige omkostninger
B15: Selskabets indberettede bortfald af væsentlige omkostninger inden 2015 | C15: 0 | D15: kr.
B16: Korrektion for forventet bortfald | C16: =SUM(C15:C15) -> 0 | D16: kr.
B19: Korrektion for prisudviklingen fra 2014-2015
B20: Driftsomkostningerne i prisloftet for 2014 | C20: =C11-C16 -> 158314494.2 | D20: kr.
B21: Prisudvikling 2014 - 2015 | C21: 0.08 | D21: pct.
B22: Korrektion for prisudvikling | C22: =C20*(C21/100) -> 126651.5953 | D22: kr.
B25: Eventuel forhøjelse til effektivt niveau iht. benchmarkingen
B26: Selskabets effektive driftsomkostninger iht. benchmarkingen | C26: 77241641.7 | D26: kr.
B27: Selskabets pristalskorrigerede driftsomkostninger i 2015-niveau | C27: =C20+C22 -> 158441145.8 | D27: kr.
B28: Eventuel forhøjelse til effektivt niveau | C28: =IF(C27>C26,0,C26-C27) -> 0 | D28: kr.
B31: Korrektion for generelt effektiviseringskrav
B32: Driftsomkostningerne i prisloftet for 2014 | C32: =C20 -> 158314494.2 | D32: kr.
B33: Generelt effektiviseringskrav | C33: 0.44 | D33: pct.
B34: Endeligt generelt effektiviseringskrav | C34: =C32*(C33/100) -> 696583.7743 | D34: kr.
B37: Korrektion for individuelt effektiviseringskrav
B38: Rå effektiviseringspotentiale | C38: 81072852.46 | D38: kr.
B39: Effektiviseringspotentiale efter eventuel korrektion for særlige forhold | C39: 81072852.46 | D39: kr.
B40: Effektiviseringspotentiale efter forsigtighedshensyn | C40: 59795384.44 | D40: kr.
B41: Effektiviseringspotentiale efter eventuel korrektion for sammensætning af signifikante costdrivere | C41: 59795384.44 | D41: kr.
B42: Umiddelbart effektiviseringskrav | C42: =C41/4 -> 14948846.11 | D42: kr.
B43: Endeligt individuelt effektiviseringskrav | C43: =IF(C42>0.05*C20,0.05*C20,IF(C42<0.01*C20,0,C42)) -> 7915724.708 | D43: kr.

Sheet 4. Historiske investeringer
A1: ='3. Driftsomkostninger'!A1 -> Biofos Lynettefællesskabet A/S
B4: Fane 4. Historiske investeringer
B6: Tillæg for historiske investeringer
B7: Værdi af selskabets materielle anlægsaktiver pr. 1. januar 2010 | C7: 1368342229 | D7: kr.
B8: Den årlige standardafskrivning på de materielle anlægsaktiver iht. POLKA | C8: 71037882.57 | D8: kr.
B9: Tillæg i alt i 2015 | C9: =C8 -> 71037882.57 | D9: kr.

Sheet 5. Gennemførte investeringer
A1: ='4. Historiske investeringer'!A1 -> Biofos Lynettefællesskabet A/S
B4: Fane 5. Gennemførte investeringer i 2010 - 2013
B6: Tillæg for gennemførte investeringer i 2013
B7: Beskrivelse af investeringen | C7: Årstal | D7: Std. levetid (år) | E7: Anskaffelses-pris (kr.) | F7: Afskrivning
B8: Indløb med riste, Mek/EL | C8: 2013 | D8: 20 | E8: 2563110 | F8: =E8/D8 -> 128155.5 | G8: kr.
B9: Indløb med riste, SRO | C9: 2013 | D9: 10 | E9: 112451 | F9: =E9/D9 -> 11245.1 | G9: kr.
B10: Forsinkelsesbassiner, lukkede uden automatisk rensning og SRO Miljøklasse B (mindre end 1.000 m3) | C10: 2013 | D10: 50 | E10: 4045503 | F10: 80910.06 | G10: kr.
B11: Sand- og fedtfang, Mek/EL | C11: 2013 | D11: 20 | E11: 92794 | F11: 4639.7 | G11: kr.
B12: Indløb med riste, SRO | C12: 2013 | D12: 10 | E12: 8808872 | F12: 880887.2 | G12: kr.
B13: Indløb med riste, SRO | C13: 2013 | D13: 10 | E13: 316012 | F13: 31601.2 | G13: kr.
B14: Indløb med riste, Mek/EL | C14: 2013 | D14: 20 | E14: 24096151 | F14: 1204807.55 | G14: kr.
B15: Indløb med riste, Mek/EL | C15: 2013 | D15: 20 | E15: 12983862 | F15: 649193.1 | G15: kr.
B16: Slutdisponering, slam - højteknologisk (slamtørring og -forbrænding), Mek/EL | C16: 2013 | D16: 20 | E16: 80982761 | F16: 4049138.05 | G16: kr.
B17: Beluftningstanke, SRO | C17: 2013 | D17: 10 | E17: 9465748 | F17: 946574.8 | G17: kr.
B18: Forafvanding, slam, SRO | C18: 2013 | D18: 10 | E18: 15565900 | F18: 1556590 | G18: kr.
B19: Forafvanding, slam, SRO | C19: 2013 | D19: 10 | E19: 2073192 | F19: 207319.2 | G19: kr.
B20: Efterklaringstanke, Mek/El | C20: 2013 | D20: 20 | E20: 7287327 | F20: 364366.35 | G20: kr.
B21: Forafvanding, slam, Mek/EL | C21: 2013 | D21: 20 | E21: 34906806 | F21: 1745340.3 | G21: kr.
B22: Forafvanding, slam, SRO | C22: 2013 | D22: 10 | E22: 17953459 | F22: 1795345.9 | G22: kr.
B23: Slutafvanding, slam - lavteknologisk (slambede), Mek/EL | C23: 2013 | D23: 20 | E23: 14586782 | F23: 729339.1 | G23: kr.
B24: Rådnetanke, slam, Mek/EL | C24: 2013 | D24: 20 | E24: 9906148 | F24: 495307.4 | G24: kr.
B25: Gasdisponering, SRO | C25: 2013 | D25: 10 | E25: 7010376 | F25: 701037.6 | G25: kr.
B26: Rådnetanke, slam, Mek/EL | C26: 2013 | D26: 20 | E26: 6512907 | F26: 325645.35 | G26: kr.
B27: Indløb med riste, Mek/EL | C27: 2013 | D27: 20 | E27: 6789474 | F27: =E27/D27 -> 339473.7 | G27: kr.
B28: Indløb med riste, Mek/EL | C28: 2013 | D28: 20 | E28: 3326336 | F28: 166316.8 | G28: kr.
B29: Jordbassin Klasse A | C29: 2013 | D29: 50 | E29: 12351549 | F29: 247030.98 | G29: kr.
B30: Gasdisponering - elproduktionsanlæg, Mek/EL | C30: 2013 | D30: 20 | E30: 1671443 | F30: 83572.15 | G30: kr.
B31: Gasdisponering - elproduktionsanlæg, Mek/EL | C31: 2013 | D31: 20 | E31: 10018076 | F31: 500903.8 | G31: kr.
B32: Arbejdsplads | C32: 2013 | D32: 5 | E32: 410000 | F32: 82000 | G32: kr.
B33: Arbejdsplads | C33: 2013 | D33: 5 | E33: 123686 | F33: 24737.2 | G33: kr.
B34: Arbejdsplads | C34: 2013 | D34: 5 | E34: 29430 | F34: 5886 | G34: kr.
B35: Beluftningstanke, Mek/EL | C35: 2013 | D35: 20 | E35: 565456 | F35: 28272.8 | G35: kr.
B36: Arbejdsplads | C36: 2013 | D36: 5 | E36: 41993 | F36: 8398.6 | G36: kr.
B37: Køretøjer, entreprenørmaskiner | C37: 2013 | D37: 5 | E37: 22263 | F37: 4452.6 | G37: kr.
B38: Slutafvanding, slam - lavteknologisk (slambede), Mek/EL | C38: 2013 | D38: 20 | E38: 135338 | F38: 6766.9 | G38: kr.
B39: Køretøjer, entreprenørmaskiner | C39: 2013 | D39: 5 | E39: 60490 | F39: 12098 | G39: kr.
B40: Køretøjer, entreprenørmaskiner | C40: 2013 | D40: 5 | E40: 36600 | F40: 7320 | G40: kr.
B41: Indløb med riste, SRO | C41: 2013 | D41: 10 | E41: 74102 | F41: 7410.2 | G41: kr.
B42: Indløb med riste, Mek/EL | C42: 2013 | D42: 20 | E42: 29112 | F42: 1455.6 | G42: kr.
B43: Køretøjer, entreprenørmaskiner | C43: 2013 | D43: 5 | E43: 56051 | F43: 11210.2 | G43: kr.
B44: Indløb med riste, SRO | C44: 2013 | D44: 10 | E44: 13577 | F44: 1357.7 | G44: kr.
B45: Indløb med riste, SRO | C45: 2013 | D45: 10 | E45: 37940 | F45: 3794 | G45: kr.
B46: Indløb med riste, SRO | C46: 2013 | D46: 10 | E46: 25535 | F46: 2553.5 | G46: kr.
B47: Arbejdsplads | C47: 2013 | D47: 5 | E47: 21492 | F47: 4298.4 | G47: kr.
B48: Arbejdsplads | C48: 2013 | D48: 5 | E48: 31621 | F48: 6324.2 | G48: kr.
B49: Arbejdsplads | C49: 2013 | D49: 5 | E49: 39624 | F49: 7924.8 | G49: kr.
B50: Forklaring, Mek/EL | C50: 2013 | D50: 20 | E50: 64980 | F50: 3249 | G50: kr.
B51: Beluftningstanke, Mek/EL | C51: 2013 | D51: 20 | E51: 331008 | F51: 16550.4 | G51: kr.
B52: Beluftningstanke, Mek/EL | C52: 2013 | D52: 20 | E52: 61701 | F52: 3085.05 | G52: kr.
B53: Arbejdsplads | C53: 2013 | D53: 5 | E53: 84659 | F53: 16931.8 | G53: kr.
B54: Arbejdsplads | C54: 2013 | D54: 5 | E54: 58720 | F54: 11744 | G54: kr.
B55: Indløb med riste, SRO | C55: 2013 | D55: 10 | E55: 43600 | F55: 4360 | G55: kr.
B56: Beluftningstanke, SRO | C56: 2013 | D56: 10 | E56: 184597 | F56: 18459.7 | G56: kr.
B57: Beluftningstanke, Mek/EL | C57: 2013 | D57: 20 | E57: 142207 | F57: 7110.35 | G57: kr.
B58: Arbejdsplads | C58: 2013 | D58: 5 | E58: 60240 | F58: 12048 | G58: kr.
B59: Forsinkelsesbassiner, lukkede uden automatisk rensning og SRO Miljøklasse B (mindre end 1.000 m3) | C59: 2013 | D59: 50 | E59: 64263 | F59: 1285.26 | G59: kr.
B60: Slutdisponering, slam - højteknologisk (slamtørring og -forbrænding), Mek/EL | C60: 2013 | D60: 20 | E60: 93863 | F60: 4693.15 | G60: kr.
B61: Arbejdsplads | C61: 2013 | D61: 5 | E61: 44709 | F61: 8941.8 | G61: kr.
B62: Slutafvanding, slam - højteknologisk (centrifuger), Mek/El | C62: 2013 | D62: 20 | E62: 502223 | F62: 25111.15 | G62: kr.
B63: Forafvanding, slam, Mek/EL | C63: 2013 | D63: 20 | E63: 98900 | F63: 4945 | G63: kr.
B64: Slutafvanding, slam - højteknologisk (centrifuger), SRO | C64: 2013 | D64: 10 | E64: 25233 | F64: 2523.3 | G64: kr.
B65: Slutdisponering, slam - højteknologisk (slamtørring og -forbrænding), SRO | C65: 2013 | D65: 10 | E65: 120029 | F65: 12002.9 | G65: kr.
B66: Slutafvanding, slam - højteknologisk (centrifuger), Mek/El | C66: 2013 | D66: 20 | E66: 32944 | F66: 1647.2 | G66: kr.
B67: Forsinkelsesbassiner, lukkede uden automatisk rensning og SRO Miljøklasse B (mindre end 1.000 m3) | C67: 2013 | D67: 50 | E67: 36490 | F67: 729.8 | G67: kr.
B68: Slutdisponering, slam - højteknologisk (slamtørring og -forbrænding), Mek/EL | C68: 2013 | D68: 20 | E68: 344102 | F68: 17205.1 | G68: kr.
B69: Sand- og fedtfang, Mek/EL | C69: 2013 | D69: 20 | E69: 118490 | F69: 5924.5 | G69: kr.
B70: Forklaring, Mek/EL | C70: 2013 | D70: 20 | E70: 23644 | F70: 1182.2 | G70: kr.
B71: Gasdisponering - elproduktionsanlæg, Mek/EL | C71: 2013 | D71: 20 | E71: 188600 | F71: 9430 | G71: kr.
B72: Sand- og fedtfang, Mek/EL | C72: 2013 | D72: 20 | E72: 102820 | F72: 5141 | G72: kr.
B73: Sand- og fedtfang, Mek/EL | C73: 2013 | D73: 20 | E73: 53350 | F73: 2667.5 | G73: kr.
B74: Indløb med riste, SRO | C74: 2013 | D74: 10 | E74: 35994 | F74: 3599.4 | G74: kr.
B75: Forklaring, SRO | C75: 2013 | D75: 10 | E75: 74137 | F75: 7413.7 | G75: kr.
B76: Forklaring, Mek/EL | C76: 2013 | D76: 20 | E76: 69363 | F76: 3468.15 | G76: kr.
B77: Beluftningstanke, Mek/EL | C77: 2013 | D77: 20 | E77: 97108 | F77: 4855.4 | G77: kr.
B78: Rådnetanke, slam, Mek/EL | C78: 2013 | D78: 20 | E78: 182514 | F78: 9125.7 | G78: kr.
B79: Forklaring, Mek/EL | C79: 2013 | D79: 20 | E79: 105651 | F79: 5282.55 | G79: kr.
B80: Efterbehandlingsanlæg (sandfilter), Mek/EL | C80: 2013 | D80: 20 | E80: 34628 | F80: 1731.4 | G80: kr.
B81: Arbejdsplads | C81: 2013 | D81: 5 | E81: 93844 | F81: 18768.8 | G81: kr.
B82: Beluftningstanke, Mek/EL | C82: 2013 | D82: 20 | E82: 312942 | F82: 15647.1 | G82: kr.
B83: Rådnetanke, slam, Mek/EL | C83: 2013 | D83: 20 | E83: 101902 | F83: 5095.1 | G83: kr.
B84: Rådnetanke, slam, Mek/EL | C84: 2013 | D84: 20 | E84: 94164 | F84: 4708.2 | G84: kr.
B85: Beluftningstanke, Mek/EL | C85: 2013 | D85: 20 | E85: 29813 | F85: 1490.65 | G85: kr.
B86: Forafvanding, slam, Mek/EL | C86: 2013 | D86: 20 | E86: 22650 | F86: 1132.5 | G86: kr.
B87: Forafvanding, slam, Mek/EL | C87: 2013 | D87: 20 | E87: 47563 | F87: 2378.15 | G87: kr.
B88: Arbejdsplads | C88: 2013 | D88: 5 | E88: 24116 | F88: 4823.2 | G88: kr.
B89: Indløb med riste, Mek/EL | C89: 2013 | D89: 20 | E89: 19806 | F89: 990.3 | G89: kr.
B90: Indløb med riste, Mek/EL | C90: 2013 | D90: 20 | E90: 90425 | F90: 4521.25 | G90: kr.
B91: Slutdisponering, slam - højteknologisk (slamtørring og -forbrænding), Mek/EL | C91: 2013 | D91: 20 | E91: 28115 | F91: 1405.75 | G91: kr.
B92: Køretøjer, entreprenørmaskiner | C92: 2013 | D92: 5 | E92: 223855 | F92: 44771 | G92: kr.
B93: Indløb med riste, Mek/EL | C93: 2013 | D93: 20 | E93: 77523 | F93: 3876.15 | G93: kr.
B94: Køretøjer, entreprenørmaskiner | C94: 2013 | D94: 5 | E94: 84170 | F94: 16834 | G94: kr.
B95: Indløb med riste, SRO | C95: 2013 | D95: 10 | E95: 45305 | F95: 4530.5 | G95: kr.
B96: Sand- og fedtfang, Mek/EL | C96: 2013 | D96: 20 | E96: 30397 | F96: 1519.85 | G96: kr.
B97: Arbejdsplads | C97: 2013 | D97: 5 | E97: 142777 | F97: 28555.4 | G97: kr.
B98: Beluftningstanke, Mek/EL | C98: 2013 | D98: 20 | E98: 326789 | F98: 16339.45 | G98: kr.
B99: Gasdisponering - elproduktionsanlæg, Mek/EL | C99: 2013 | D99: 20 | E99: 47605 | F99: 2380.25 | G99: kr.
B100: Slutafvanding, slam - højteknologisk (centrifuger), SRO | C100: 2013 | D100: 10 | E100: 116139 | F100: 11613.9 | G100: kr.
B101: Beluftningstanke, Mek/EL | C101: 2013 | D101: 20 | E101: 131905 | F101: 6595.25 | G101: kr.
B102: Indløb med riste, Mek/EL | C102: 2013 | D102: 20 | E102: 36670 | F102: 1833.5 | G102: kr.
B103: Forsinkelsesbassiner, lukkede uden automatisk rensning og SRO Miljøklasse B (mindre end 1.000 m3) | C103: 2013 | D103: 50 | E103: 183995 | F103: 3679.9 | G103: kr.
B104: Indløb med riste, SRO | C104: 2013 | D104: 10 | E104: 54668 | F104: 5466.8 | G104: kr.
B105: Forklaring, Mek/EL | C105: 2013 | D105: 20 | E105: 54017 | F105: 2700.85 | G105: kr.
B106: Indløb med riste, Mek/EL | C106: 2013 | D106: 20 | E106: 56438 | F106: 2821.9 | G106: kr.
B107: Arbejdsplads | C107: 2013 | D107: 5 | E107: 38252 | F107: 7650.4 | G107: kr.
B108: Indløb med riste, Mek/EL | C108: 2013 | D108: 20 | E108: 31087 | F108: 1554.35 | G108: kr.
B109: Forafvanding, slam, Mek/EL | C109: 2013 | D109: 20 | E109: 24804 | F109: 1240.2 | G109: kr.
B110: Pumpeinstallation Miljøklasse A (100-300 l/s) - Mek/EL | C110: 2013 | D110: 20 | E110: 107039 | F110: 5351.95 | G110: kr.
B111: Forsinkelsesbassiner, lukkede uden automatisk rensning og SRO Miljøklasse B (mindre end 1.000 m3) | C111: 2013 | D111: 50 | E111: 18871 | F111: 377.42 | G111: kr.
B112: Forsinkelsesbassiner, lukkede uden automatisk rensning og SRO Miljøklasse B (mindre end 1.000 m3) | C112: 2013 | D112: 50 | E112: 32437 | F112: 648.74 | G112: kr.
B113: Arbejdsplads | C113: 2013 | D113: 5 | E113: 303950 | F113: 60790 | G113: kr.
B114: Arbejdsplads | C114: 2013 | D114: 5 | E114: 242000 | F114: 48400 | G114: kr.
B115: Sand- og fedtfang, Mek/EL | C115: 2013 | D115: 20 | E115: 85480 | F115: 4274 | G115: kr.
B116: Pumpeinstallation Miljøklasse A (100-300 l/s) - Mek/EL | C116: 2013 | D116: 20 | E116: 138452 | F116: 6922.6 | G116: kr.
B117: Beluftningstanke, Mek/EL | C117: 2013 | D117: 20 | E117: 96046 | F117: 4802.3 | G117: kr.
B118: Pumpeinstallation Miljøklasse A (100-300 l/s) - Mek/EL | C118: 2013 | D118: 20 | E118: 97866 | F118: 4893.3 | G118: kr.
B119: Indløb med riste, Mek/EL | C119: 2013 | D119: 20 | E119: 97621 | F119: 4881.05 | G119: kr.
B120: Pumpeinstallation Miljøklasse A (100-300 l/s) - Mek/EL | C120: 2013 | D120: 20 | E120: 113723 | F120: 5686.15 | G120: kr.
B121: Indløb med riste, SRO | C121: 2013 | D121: 10 | E121: 34897 | F121: 3489.7 | G121: kr.
B122: Sand- og fedtfang, Mek/EL | C122: 2013 | D122: 20 | E122: 36477 | F122: 1823.85 | G122: kr.
B123: Indløb med riste, Mek/EL | C123: 2013 | D123: 20 | E123: 31111 | F123: 1555.55 | G123: kr.
B124: Arbejdsplads | C124: 2013 | D124: 5 | E124: 37438 | F124: 7487.6 | G124: kr.
B125: Forafvanding, slam, Mek/EL | C125: 2013 | D125: 20 | E125: 102004 | F125: 5100.2 | G125: kr.
B126: Køretøjer, små lastvogne (< 3.500 kg.) | C126: 2013 | D126: 5 | E126: 59379 | F126: 11875.8 | G126: kr.
B127: Beluftningstanke, Mek/EL | C127: 2013 | D127: 20 | E127: 88573 | F127: 4428.65 | G127: kr.
B128: Beluftningstanke, Mek/EL | C128: 2013 | D128: 20 | E128: 87778 | F128: 4388.9 | G128: kr.
B129: Beluftningstanke, Mek/EL | C129: 2013 | D129: 20 | E129: 70332 | F129: 3516.6 | G129: kr.
B130: Forsinkelsesbassiner, lukkede uden automatisk rensning og SRO Miljøklasse B (mindre end 1.000 m3) | C130: 2013 | D130: 50 | E130: 113082 | F130: 2261.64 | G130: kr.
B131: Indløb med riste, Mek/EL | C131: 2013 | D131: 20 | E131: 23257 | F131: 1162.85 | G131: kr.
B132: Slutdisponering, slam - lavteknologisk (slammineralisering), Mek/EL | C132: 2013 | D132: 20 | E132: 74463 | F132: 3723.15 | G132: kr.
B133: Arbejdsplads | C133: 2013 | D133: 5 | E133: 36244 | F133: 7248.8 | G133: kr.
B134: Køretøjer, store lastvogne (> 3.500 kg.) | C134: 2013 | D134: 5 | E134: 211046 | F134: 42209.2 | G134: kr.
B135: Køretøjer, store lastvogne (> 3.500 kg.) | C135: 2013 | D135: 5 | E135: 98434 | F135: 19686.8 | G135: kr.
B136: Indløb med riste, Mek/EL | C136: 2013 | D136: 20 | E136: 23554 | F136: 1177.7 | G136: kr.
B137: Indløb med riste, SRO | C137: 2013 | D137: 10 | E137: 22995 | F137: 2299.5 | G137: kr.
B138: Pumpeinstallation Miljøklasse A (300-600 l/s) - Mek/EL | C138: 2013 | D138: 20 | E138: 233378 | F138: 11668.9 | G138: kr.
B139: Køretøjer, personbil | C139: 2013 | D139: 5 | E139: 57532 | F139: 11506.4 | G139: kr.
B140: Pumpestationer i brønde (< 6,25 m2), Mek/EL | C140: 2013 | D140: 20 | E140: 68139 | F140: 3406.95 | G140: kr.
B141: Pumpestationer i brønde (< 6,25 m2), Mek/EL | C141: 2013 | D141: 20 | E141: 45510 | F141: 2275.5 | G141: kr.
B142: Indløb med riste, SRO | C142: 2013 | D142: 5 | E142: 4344768 | F142: 868953.6 | G142: kr.
B143: Tillæg for 2013 | F143: =SUM(F8:F142) -> 19096646.05 | G143: kr.
B144: Tillæg for 2010 - 2012 | F144: 20793845.6 | G144: kr.
B145: Samlet tillæg for gennemførte investeringer | F145: =F143+F144 -> 39890491.65 | G145: kr.

Sheet 6. Korrektion investeringer
A1: ='5. Gennemførte investeringer'!A1 -> Biofos Lynettefællesskabet A/S
B4: Fane 6. Korrektion af tillæg for planlagte investeringer
B6: Korrektion af tillæg for planlagte investeringer vedr. 2013
B7: Tillæg for planlagte investeringer i 2013 i prisloft 2013 | C7: 11912000 | D7: kr.
B8: Tillæg for planlagte investeringer i 2013 i prisloft 2014 | C8: 10550000 | D8: kr.
B9: Selskabets faktiske afskrivninger på gennemførte investeringer i 2013 | C9: ='5. Gennemførte investeringer'!F143 -> 19096646.05 | D9: kr.
B10: Korrektion af tillæg for planlagte investeringer vedr. 2013 | C10: =C9-C7+C9-C8 -> 15731292.1 | D10: kr.

Sheet 7. Planlagte investeringer
A1: ='6. Korrektion investeringer'!A1 -> Biofos Lynettefællesskabet A/S
B4: Fane 7. Planlagte investeringer
B6: Tillæg for planlagte investeringer i 2014 og 2015
B7: Beskrivelse af investeringen | C7: Årstal | D7: Std. levetid (år) | E7: Anskaffelses-pris (kr.) | F7: Afskrivning
B8: Slutdisponering, slam - højteknologisk (slamtørring og -forbrænding), Mek/EL | C8: 2014 | D8: 20 | E8: 97285000 | F8: =E8/D8 -> 4864250 | G8: kr.
B9: Slutdisponering, slam - højteknologisk (slamtørring og -forbrænding), SRO | C9: 2014 | D9: 10 | E9: 97285000 | F9: =E9/D9 -> 9728500 | G9: kr.
B10: Slutdisponering, slam - højteknologisk (slamtørring og -forbrænding), Mek/EL | C10: 2015 | D10: 20 | E10: 130265000 | F10: =E10/D10 -> 6513250 | G10: kr.
B11: Slutdisponering, slam - højteknologisk (slamtørring og -forbrænding), SRO | C11: 2015 | D11: 10 | E11: 130265000 | F11: 13026500 | G11: kr.
B12: Tillæg for 2014 | F12: =SUMIF(C8:C11,"2014",F8:F11) -> 14592750 | G12: kr.
B13: Tillæg for 2015 | F13: =SUMIF(C8:C11,"2015",F8:F11) -> 19539750 | G13: kr.
B14: Tillæg i alt | F14: =F12+F13 -> 34132500 | G14: kr.

Sheet 8. 1-1 omkostninger
A1: ='7. Planlagte investeringer'!A1 -> Biofos Lynettefællesskabet A/S
B4: Fane 8. 1:1 omkostninger
B6: Tillæg for budgetterede 1:1 omkostninger i 2015
B7: Betaling til Forsyningssekretariatet | C7: 33000 | D7: kr.
B8: Spildevandsafgift | C8: 26000000 | D8: kr.
B9: Køb af varer og tjenesteydelser hos et andet prisloftreguleret vandselskab | C9: 2200000 | D9: kr.
B10: Tillægsafgift på affald | C10: 1000000 | D10: kr.
B11: CO2-afgift | C11: 200000 | D11: kr.
B12: Deponeringsafgift | C12: 1800000 | D12: kr.
B13: Ejendomsskatter | C13: 8800000 | D13: kr.
B14: Tillæg i alt | C14: =SUM(C7:C13) -> 40033000 | D14: kr.
B19: Tillæg for budgetterede nødvendige udgifter til revisorerklæringer samt ordinært medlemskab af DANVA og FVD i 2015
B20: Betaling for ordinært medlemskab af DANVA/FVD | C20: 160000 | D20: kr.
B21: Betaling for revisorerklæringer | C21: 48800 | D21: kr.
B22: Tillæg i alt | C22: =SUM(C20:C21) -> 208800 | D22: kr.
B25: Korrektion af tillæg for faktiske 1:1 omkostninger (inkl. revisorerklæringer og ordinært medlemskab af DANVA/FVD) i 2013
B26: Selskabets faktiske 1:1 omkostninger mv. i 2013, jf. reguleringsregnskabet | C26: 39842387 | D26: kr.
B27: Tillæg for budgetterede 1:1 omkostninger mv. i prisloft 2013 | C27: 53535300 | D27: kr.
B28: Korrektion af tillæg for budgetterede 1:1 omkostninger mv. i 2013 | C28: =C26-C27 -> -13692913 | D28: kr.

Sheet 9. Miljø- og servicemål
A1: ='8. 1-1 omkostninger'!A1 -> Biofos Lynettefællesskabet A/S
B4: Fane 9. Driftsomkostninger til miljø- og servicemål
B6: Tillæg for budgetterede driftsomkostninger til miljø- og servicemål i 2015
B7: Genanvendelse af aske | C7: 850000 | D7: kr.
B8: Genanvendelse af sand | C8: 700000 | D8: kr.
B9: Deponering af aske til udlandet | C9: 850000 | D9: kr.
B10: Tillæg i alt | C10: =SUM(C7:C9) -> 2400000 | D10: kr.
B14: Korrektion af tillæg for faktiske driftsomkostninger til miljø- og servicemål i 2013
B15: Selskabets faktiske driftsomkostninger til miljø- og servicemål i 2013, jf. reguleringsregnskabet | C15: 0 | D15: kr.
B16: Tillæg for budgetterede driftsomkostninger til miljø- og servicemål i prisloft 2013 | C16: 0 | D16: kr.
B17: Korrektion af tillæg for budgetterede driftsomkostninger til miljø- og servicemål i 2013 | C17: =C15-C16 -> 0 | D17: kr.

Sheet 10. Klimatilpasning
A1: ='9. Miljø- og servicemål'!A1 -> Biofos Lynettefællesskabet A/S
B4: Fane 10. Medfinansiering af klimatilpasningsprojekter
B7: Tillæg for budgetterede omkostninger til medfinansiering af klimatilpasningsprojekter i 2015
C8: 0 | D8: kr.
B9: Tillæg i alt | C9: =SUM(C8:C8) -> 0 | D9: kr.
B13: Korrektion af tillæg for faktiske omkostninger til medfinansiering af klimatilpasningsprojekter i 2013
B14: Selskabets faktiske driftsomkostninger til klimatilpasningsprojekter i 2013, jf. reguleringsregnskabet | C14: 0 | D14: kr.
B15: Tillæg for budgetterede driftsomkostninger til klimatilpasningsprojekter i prisloft 2013 | C15: 0 | D15: kr.
B16: Korrektion af tillæg for budgetterede omkostninger til klimatilpasningsprojekter i 2013 | C16: =C14-C15 -> 0 | D16: kr.

Sheet 11. Nettofinansielle poster
A1: ='10. Klimatilpasning'!A1 -> Biofos Lynettefællesskabet A/S
B4: Fane 11. Nettofinansielle poster
B6: Tillæg for budgetterede nettofinansielle poster i 2015
B7: Budgetterede renteudgifter og gebyrer i 2015 | C7: 6600000 | D7: kr.
B8: Budgetterede renteindtægter i 2015 | C8: 50000 | D8: kr.
B9: Tillæg/fradrag i alt | C9: =C7-C8 -> 6550000 | D9: kr.
B13: Korrektion af tillæg for faktiske nettofinansielle poster i 2013
B14: Selskabets faktiske nettofinansielle poster i 2013, jf. reguleringsregnskabet | C14: 5594118 | D14: kr.
B15: Tillæg for budgetterede nettofinansielle poster i prisloft 2013 | C15: 5078325 | D15: kr.
B16: Korrektion af tillæg for budgetterede nettofinansielle poster i 2013 | C16: =C14-C15 -> 515793 | D16: kr.

Sheet 12. Over- eller underdækning
A1: ='11. Nettofinansielle poster'!A1 -> Biofos Lynettefællesskabet A/S
B4: Fane 12. Over- eller underdækning til og med 2010
B6: Tillæg/fradrag for over- eller underdækning til og med 2010
B7: Opgjort over- eller underdækning per 31. december 2010 | C7: 35577402 | D7: kr.
B8: Heraf beløb indregnet i prislofterne for 2011 - 2014 | C8: 28348993.5 | D8: kr.
B9: Endnu ikke indregnet over- eller underdækning | C9: =C7-C8 -> 7228408.5 | D9: kr.
B10: Resterende indregningsperiode (fastsat i prisloftet for 2012) | C10: 1 | D10: år
B11: Tillæg/fradrag i alt | C11: =IF(C7=0,0,C9/C10) -> 7228408.5 | D11: kr.

Sheet 13. Kontrol med indtægtsrammen
A1: ='12. Over- eller underdækning'!A1 -> Biofos Lynettefællesskabet A/S
B4: Fane 13. Korrektion for overholdelse af indtægtsrammen i prisloftet for 2013
B6: Samlet opgørelse vedrørende overholdelse af indtægtsrammen i prisloftet for 2013
B7: Indtægtsramme i prisloftet for 2013 | E7: 302080693.2 | F7: kr.
B8: Ikke anvendt likviditet vedrørende investeringer i 2013
B9: Tillæg for historiske investeringer | C9: 71136316.54 | D9: kr.
B10: Tillæg for gennemførte investeringer i 2011 | C10: 18504619 | D10: kr.
B11: Korrektion af tillæg for planlagte investeringer i 2011 | C11: -13281858 | D11: kr.
B12: Tillæg for planlagte investeringer i 2012 og 2013 | C12: 31039733 | D12: kr.
B13: Indtægter fra tilslutningsbidrag | C13: 0 | D13: kr.
B14: Indtægter fra salg af anlægsaktiver | C14: 108131 | D14: kr.
B15: Erstatninger vedr. anlægsaktiver mv. | C15: 0 | D15: kr.
B16: Ekstraordinær effektiviseringsgevinst anvendt til investeringer | C16: 8991854 | D16: kr.
B17: Udgifter til investeringer | C17: -116498796 | D17: kr.
B18: Ikke anvendt likviditet vedr. investeringer i alt | C18: =SUM(C9:C17) -> -0.459284097 | D18: kr. | E18: =IF(C18<0,0,-C18) -> 0 | F18: kr.
B19: Ekstraordinære effektiviseringsgevinster anvendt til takstnedsættelse
B20: Ekstraordinær effektiviseringsgevinst anvendt til takstnedsættelse | C20: 0 | D20: kr. | E20: =-C20 -> 0 | F20: kr.
B21: Korrektion af ikke opkrævet tillæg fra 2011 i prisloft 2013
B22: Korrektion af ikke opkrævet tillæg fra 2011 i prisloft 2013 | C22: 0 | D22: kr. | E22: =-C22 -> 0 | F22: kr.
B23: Indtægter fra primære aktiviteter mv.
B24: Indtægter fra kubikmetertakster, faste takster, særbidrag, målergebyrer samt andre takster og gebyrer | C24: 284375700 | D24: kr.
B25: Andre indtægter i prisloftåret, som selskabet har opnået i forbindelse med eller som følge af selskabets primære aktiviteter | C25: 0 | D25: kr.
B26: Indtægter fra primære aktiviteter mv. i alt | C26: =SUM(C24:C25) -> 284375700 | D26: kr. | E26: =-C26 -> -284375700 | F26: kr.
B27: Tillæg/fradrag i prisloftet for 2015 i alt | E27: =E7+E18+E20+E22+E26 -> 17704993.19 | F27: kr.
B31: Oversigt over ekstraordinære effektiviseringsgevinster
C33: 2012 | E33: 2013 | G33: 2014 | I33: 2015 | K33: 2016
B34: Indhentet ekstraordinær effektiviseringsgevinst | C34: 0 | D34: kr. | E34: 10565514 | F34: kr. | H34: kr. | J34: kr. | L34: kr.
B35: Gevinst anvendt til investeringer | C35: 0 | D35: kr. | E35: 8991854 | F35: kr. | H35: kr. | J35: kr. | L35: kr.
B36: Gevinst anvendt til dækning af fusionsomkostninger | C36: 0 | D36: kr. | E36: 1573660 | F36: kr. | H36: kr. | J36: kr.
B37: Gevinst anvendt til takstnedsættelse | C37: 0 | D37: kr. | E37: 0 | F37: kr. | H37: kr. | J37: kr. | L37: kr.
B38: Korrektion for effektiviseringsgevinst der ikke er anvendt inden 4 år | C38: 0 | D38: kr. | E38: 0 | F38: kr. | H38: kr. | J38: kr. | K38: =IF(C39>SUM(C35:I37),C39-SUM(E35:I37),0)*-1 -> 0 | L38: kr.
B39: Resterende gevinst | C39: =C34-C35-C37 -> 0 | D39: kr. | E39: =C39+E34-E36-E35-E37 -> 0 | F39: kr. | G39: =E39+G34-G35-G37 -> 0 | H39: kr. | I39: =G39+I34-I35-I37 -> 0 | J39: kr. | K39: =K34-K35-K37+K38 -> 0 | L39: kr.
